{"text_format":"3","workbook":"xlsx","n_sheets":3,"sheets":["Senarai Pelajar","Jadual Kelas","Butiran Pelajar"],"not_rendered":{"images":2,"defined_names":6},"read":"whole","date_system":"1900"}

{"sheet":"Senarai Pelajar","index":0,"n_rows":7,"n_cols":12,"rows_kept":7,"merged":[[7,1,7,11]]}
[]
[]
[null," ","NAMA PELAJAR","E-MEL","TELEFON RUMAH","TELEFON BIMBIT","TARIKH LAHIR","HUBUNGAN KECEMASAN","TELEFON KECEMASAN","PAKAR PERUBATAN","TELEFON PAKAR PERUBATAN","  "]
[null,{"$f":"Pelajar[[#This Row],[NAMA PELAJAR]]","v":"Alexander, David"},"Alexander, David","david@contoh.com",1235550121,1235550126,"1993-01-01","Michelle Alexander",1235550130,"Shu Ito",1235550134]
[null,{"$f":"Pelajar[[#This Row],[NAMA PELAJAR]]","v":"Kim, Shane"},"Kim, Shane","shane@contoh.com",1235550122,1235550127,"1992-01-01","Jim Kim",1235550131,"Daniel Roth",1235550135]
[null,{"$f":"Pelajar[[#This Row],[NAMA PELAJAR]]","v":"Mirchandani, Bharat"},"Mirchandani, Bharat","bharat@contoh.com",1235550124,1235550128,"1991-01-01","Nitin S. Mirchandani",1235550132,"John Kane",1235550136]
[null,{"$f":"Pelajar[[#This Row],[NAMA PELAJAR]]","v":"Turner, Richard"},"Turner, Richard","richard@contoh.com",1235550125,1235550129,"1992-01-01","Olinda Turner",1235550133,"Terry Earls",1235550137]

{"sheet":"Jadual Kelas","index":1,"n_rows":12,"n_cols":7,"rows_kept":12,"merged":[[12,1,12,6]]}
[]
[{"$nulls":3},"Institut Reka Bentuk Grafik"]
[null,null,"KURSUS","Seni Grafik 101","TARIKH MULA","2011-06-06"]
[null,null,"PENGAJAR","Hanson, Mark","TARIKH TAMAT","2011-08-26"]
[null,null,"PELAJAR YANG TERDAFTAR",{"$f":"COUNTA(JadualPelajar[NAMA PELAJAR])","v":5}]
[]
[null," ","NAMA PELAJAR","E-MEL","TELEFON RUMAH","TELEFON BIMBIT","  "]
[null,null,"Alexander, David",{"$f":"IFERROR(VLOOKUP(JadualPelajar[[#This Row],[NAMA PELAJAR]],Pelajar[],3),\"\")","v":"david@contoh.com"},{"$f":"IFERROR(VLOOKUP(JadualPelajar[[#This Row],[NAMA PELAJAR]],Pelajar[],4),\"\")","v":1235550121},{"$f":"IFERROR(VLOOKUP(JadualPelajar[[#This Row],[NAMA PELAJAR]],Pelajar[],5),\"\")","v":1235550126}]
[null,null,"Kim, Shane",{"$f":"IFERROR(VLOOKUP(JadualPelajar[[#This Row],[NAMA PELAJAR]],Pelajar[],3),\"\")","v":"shane@contoh.com"},{"$f":"IFERROR(VLOOKUP(JadualPelajar[[#This Row],[NAMA PELAJAR]],Pelajar[],4),\"\")","v":1235550122},{"$f":"IFERROR(VLOOKUP(JadualPelajar[[#This Row],[NAMA PELAJAR]],Pelajar[],5),\"\")","v":1235550127}]
[null,null,"Mirchandani, Bharat",{"$f":"IFERROR(VLOOKUP(JadualPelajar[[#This Row],[NAMA PELAJAR]],Pelajar[],3),\"\")","v":"bharat@contoh.com"},{"$f":"IFERROR(VLOOKUP(JadualPelajar[[#This Row],[NAMA PELAJAR]],Pelajar[],4),\"\")","v":1235550124},{"$f":"IFERROR(VLOOKUP(JadualPelajar[[#This Row],[NAMA PELAJAR]],Pelajar[],5),\"\")","v":1235550128}]
[null,null,"Turner, Richard",{"$f":"IFERROR(VLOOKUP(JadualPelajar[[#This Row],[NAMA PELAJAR]],Pelajar[],3),\"\")","v":"richard@contoh.com"},{"$f":"IFERROR(VLOOKUP(JadualPelajar[[#This Row],[NAMA PELAJAR]],Pelajar[],4),\"\")","v":1235550125},{"$f":"IFERROR(VLOOKUP(JadualPelajar[[#This Row],[NAMA PELAJAR]],Pelajar[],5),\"\")","v":1235550129}]
[null,null,"Kim, Shane",{"$f":"IFERROR(VLOOKUP(JadualPelajar[[#This Row],[NAMA PELAJAR]],Pelajar[],3),\"\")","v":"shane@contoh.com"},{"$f":"IFERROR(VLOOKUP(JadualPelajar[[#This Row],[NAMA PELAJAR]],Pelajar[],4),\"\")","v":1235550122},{"$f":"IFERROR(VLOOKUP(JadualPelajar[[#This Row],[NAMA PELAJAR]],Pelajar[],5),\"\")","v":1235550127}]

{"sheet":"Butiran Pelajar","index":2,"n_rows":12,"n_cols":4,"rows_kept":12}
[]
[]
[]
[null,null,"NAMA PELAJAR","Turner, Richard"]
[null,null,"E-MEL",{"$f":"IFERROR(VLOOKUP(Nama_Pelajar,Pelajar[],3,FALSE),\"\")","v":"richard@contoh.com"}]
[null,null,"TELEFON RUMAH",{"$f":"IFERROR(VLOOKUP(Nama_Pelajar,Pelajar[],4,FALSE),\"\")","v":1235550125}]
[null,null,"TELEFON BIMBIT",{"$f":"IFERROR(VLOOKUP(Nama_Pelajar,Pelajar[],5,FALSE),\"\")","v":1235550129}]
[null,null,"TARIKH LAHIR",{"$f":"IFERROR(VLOOKUP(Nama_Pelajar,Pelajar[],6,FALSE),\"\")","v":"1992-01-01"}]
[null,null,"HUBUNGAN KECEMASAN",{"$f":"IFERROR(VLOOKUP(Nama_Pelajar,Pelajar[],7,FALSE),\"\")","v":"Olinda Turner"}]
[null,null,"TELEFON KECEMASAN",{"$f":"IFERROR(VLOOKUP(Nama_Pelajar,Pelajar[],8,FALSE),\"\")","v":1235550133}]
[null,null,"PAKAR PERUBATAN",{"$f":"IFERROR(VLOOKUP(Nama_Pelajar,Pelajar[],9,FALSE),\"\")","v":"Terry Earls"}]
[null,null,"TELEFON PAKAR PERUBATAN",{"$f":"IFERROR(VLOOKUP(Nama_Pelajar,Pelajar[],10,FALSE),\"\")","v":1235550137}]